bitfinex/quotes_ETHUSD_20250331
["timestamp","ask_amount","ask_price","bid_price","bid_amount"]
[1743397425932,0.005,1813.4,1813.3,10.9238]
[1743397428139,0.005,1813.4,1813.3,5.5148]
[1743397428340,0.005,1813.4,1813.3,19.902]
[1743397428527,0.7952,1813.4,1813.3,14.5]
[1743397430029,0.7952,1813.4,1813.3,20.0148]
[1743397430428,0.7952,1813.4,1813.3,14.5]
[1743397430655,0.7952,1813.4,1813.3,20.0148]
[1743397430964,0.005,1813.4,1813.3,21.13188446]
[1743397433056,0.005,1813.5,1813.4,6.2768]
[1743397433226,0.005,1813.5,1813.4,9.2768]
[1743397434662,0.005,1813.5,1813.4,14.6898]
[1743397435065,0.005,1813.5,1813.4,9.2768]
[1743397435264,0.005,1813.5,1813.4,14.6878]
[1743397436136,0.005,1813.5,1813.4,13.9255]
[1743397436539,0.005,1813.5,1813.4,5.5145]
[1743397436738,0.005,1813.5,1813.4,10.9275]
[1743397439777,0.005,1813.5,1813.4,11.7072]
[1743397440651,0.005,1813.5,1813.4,10.9275]
[1743397440857,0.005,1813.5,1813.4,11.7072]
[1743397441057,0.005,1813.5,1813.4,12.837862]
[1743397442010,0.005,1813.5,1813.4,15.837862]
[1743397442277,1e-05,1813.5,1813.4,16.387862]
[1743397442455,1e-05,1813.5,1813.4,15.849862]
[1743397443158,1e-05,1813.5,1813.4,10.424862]
[1743397443366,1e-05,1813.5,1813.4,15.855862]
[1743397444256,1e-05,1813.5,1813.4,16.405862]
[1743397445245,1e-05,1813.5,1813.4,10.424862]
[1743397445447,1e-05,1813.5,1813.4,15.078162]
[1743397446985,1e-05,1813.5,1813.4,16.407862]
[1743397448477,1e-05,1813.5,1813.4,10.424862]
[1743397448679,1e-05,1813.5,1813.4,12.075162]
[1743397449849,1e-05,1813.5,1813.4,6.645162]
[1743397450048,0.77441,1813.5,1813.4,1.130662]
[1743397450280,0.77441,1813.5,1813.4,5.437]
[1743397452662,0.77441,1813.5,1813.4,10.9515]
[1743397453396,0.77441,1813.5,1813.4,5.437]
[1743397453765,0.77441,1813.5,1813.4,10.9515]
[1743397454307,0.77441,1813.5,1813.2,5.51509]
[1743397454468,0.77441,1813.5,1813.4,5.424]
[1743397455064,0.77441,1813.5,1813.4,10.9385]
[1743397456199,1e-05,1813.5,1813.4,10.9385]
[1743397458473,1e-05,1813.5,1813.4,42.7595]
[1743397459102,0.80091,1813.5,1813.4,42.7595]
[1743397459865,0.80091,1813.5,1813.4,31.821]
[1743397460065,0.80091,1813.5,1813.4,37.253]
[1743397460266,0.80091,1813.5,1813.4,43.87207855]
[1743397460677,0.80091,1813.5,1813.4,38.35757855]
[1743397462408,0.80091,1813.5,1813.4,43.87207855]
[1743397462707,1e-05,1813.5,1813.4,43.87207855]
[1743397467015,1e-05,1813.5,1813.4,47.69747855]
[1743397471816,1e-05,1813.5,1813.4,43.90107855]
[1743397471817,0.79041,1813.5,1813.4,43.90107855]
[1743397472922,0.79041,1813.5,1813.4,12.08007855]
[1743397474196,1e-05,1813.5,1813.4,12.08007855]
[1743397475836,1e-05,1813.5,1813.4,6.61907855]
[1743397476043,1e-05,1813.5,1813.4,12.07707855]
[1743397476513,1e-05,1813.5,1813.4,12.07907855]
[1743397477636,0.79041,1813.5,1813.4,1.10457855]
[1743397477939,0.79041,1813.5,1813.4,6.56057855]
[1743397480942,0.79041,1813.5,1813.4,15.60457855]
[1743397481118,0.79041,1813.5,1813.1,31.819]
[1743397481119,6.31337,1813.3,1813.1,31.819]
[1743397481318,0.7983,1813.1,1812.9,5.452]
[1743397481718,0.7983,1813.1,1813.0,14.5]
[1743397482958,0.7983,1813.1,1813.0,15.6223373]
[1743397484243,6.31371,1813.1,1813.0,15.6223373]
[1743397484610,7.76783415,1813.1,1813.0,15.6223373]
[1743397484815,7.79893415,1813.1,1813.0,15.6223373]
[1743397485244,7.79893415,1813.1,1813.0,1.1223373]
[1743397485541,0.8294,1812.8,1812.3,10.96656]
[1743397485723,2.71239147,1812.7,1812.4,14.5]
[1743397486116,0.8294,1812.6,1812.4,14.5]
[1743397486317,0.8294,1812.8,1812.6,5.51679]
[1743397486532,0.8294,1812.9,1812.7,5.51663]
[1743397486738,0.8294,1812.9,1812.7,5.464]
[1743397487128,0.8294,1812.9,1812.8,14.5]
[1743397489820,0.8294,1812.9,1812.5,1.10796678]
[1743397489821,6.34576,1812.8,1812.5,6.56496678]
[1743397490023,2.71239147,1812.7,1812.5,6.56496678]
[1743397490437,0.8294,1812.8,1812.6,14.5]
[1743397490954,6.8794,1812.9,1812.7,5.51649]
[1743397491148,6.8794,1812.9,1812.6,5.51672]
[1743397491330,6.8794,1812.9,1812.7,5.5165]
[1743397491537,6.8794,1812.9,1812.8,14.5]
[1743397493164,6.05,1812.9,1812.8,14.5]
[1743397493968,6.05,1812.9,1812.8,20.01632]
[1743397494167,6.05,1812.9,1812.8,14.5]
[1743397494507,2.71239147,1812.9,1812.8,14.5]
[1743397494652,3.54179147,1812.9,1812.8,14.5]
[1743397495666,3.54179147,1812.9,1812.8,15.61045389]
[1743397496037,0.8294,1812.9,1812.8,15.61045389]
[1743397496960,6.34542,1812.9,1812.8,1.11045389]
[1743397497165,7.80277315,1812.9,1812.8,1.11045389]
[1743397497330,7.80277315,1812.9,1812.8,15.61045389]
[1743397497530,2.28675315,1812.9,1812.8,15.61045389]
[1743397497757,2.28675315,1812.9,1812.3,0.774]
[1743397497758,5.51691,1812.7,1812.2,37.351]
[1743397497955,0.7581,1812.5,1812.2,42.86894]
[1743397498241,0.7581,1812.5,1812.3,14.5]
[1743397498662,0.7581,1812.5,1812.4,1.11521368]
[1743397499564,2.71239147,1812.6,1812.4,1.11521368]
[1743397499778,0.7764,1812.7,1812.4,1.77423505]
[1743397499949,0.7764,1812.7,1812.4,7.29165505]
[1743397500483,0.7764,1812.7,1812.4,1.77423505]
[1743397500629,9.53879147,1813.1,1812.7,5.51644]
[1743397500829,7.24570915,1813.1,1812.8,14.5]
[1743397501164,2.71239147,1812.9,1812.8,14.5]
[1743397501864,9.00481147,1812.9,1812.8,14.5]
[1743397502083,9.00481147,1812.9,1812.7,5.473]
[1743397502597,9.00481147,1812.9,1812.7,19.973]
[1743397502895,3.48879147,1812.9,1812.7,19.973]
[1743397505998,3.48879147,1813.1,1812.8,5.51614]
[1743397506168,3.48879147,1813.1,1812.7,26.60994516]
[1743397507157,2.71239147,1812.9,1812.7,26.60994516]
[1743397508000,2.71239147,1812.9,1812.7,32.12645516]
[1743397508289,3.48879147,1813.1,1812.7,26.60994516]
[1743397509912,3.48879147,1813.1,1812.7,21.09343516]
[1743397509913,0.7764,1813.1,1812.7,21.09343516]
[1743397510219,6.05,1813.2,1812.9,5.51585]
[1743397510508,3.48879147,1813.3,1813.0,5.5156]
[1743397510911,3.48880147,1813.5,1813.2,5.51511]
[1743397511207,3.48880147,1813.5,1813.1,5.465]
[1743397511566,3.48880147,1813.5,1813.1,10.98028]
[1743397512159,2.71239147,1813.3,1813.1,10.98028]
[1743397513013,3.48880147,1813.5,1813.2,5.51489]
[1743397513171,3.48880147,1813.5,1813.2,11.02988]
[1743397513510,3.48880147,1813.5,1813.2,6.60741288]
[1743397514761,3.48880147,1813.5,1813.3,14.5]
[1743397515781,3.48880147,1813.5,1813.2,1.09252288]
[1743397516267,3.48880147,1813.5,1813.2,15.59252288]
[1743397518672,3.48880147,1813.5,1813.2,1.09252288]
[1743397520485,3.50399147,1813.3,1812.8,31.834]
[1743397520703,3.50399147,1813.3,1812.8,32.6153]
[1743397520704,0.7916,1813.3,1812.8,32.6153]
[1743397520916,2.71239147,1813.2,1812.8,47.1153]
[1743397521189,2.71239147,1813.2,1812.9,1.10442466]
[1743397521384,2.71239147,1813.2,1813.0,5.51548]
[1743397521638,8.76239147,1813.4,1813.1,5.51524]
[1743397521797,8.76239147,1813.4,1813.1,20.01524]
[1743397522306,8.76239147,1813.4,1813.1,25.50324]
[1743397523620,2.71239147,1813.4,1813.1,25.50324]
[1743397523825,8.22689147,1813.4,1813.1,19.988]
[1743397524389,2.71239147,1813.4,1813.1,19.988]
[1743397525541,2.71239147,1813.4,1813.1,25.50337]
[1743397526749,2.71239147,1813.4,1813.2,5.51506]
[1743397526923,2.71239147,1813.4,1813.2,11.03012]
[1743397527110,2.71239147,1813.4,1813.2,5.51506]
[1743397527306,2.71239147,1813.4,1813.3,14.5]
[1743397528012,1e-05,1813.5,1813.3,14.5]
[1743397528207,1e-05,1813.5,1813.4,6.3119]
[1743397528813,1e-05,1813.5,1813.4,20.8119]
[1743397531343,1e-05,1813.5,1813.4,21.23387059]
[1743397537550,1e-05,1813.5,1813.4,26.67787059]
[1743397539644,1e-05,1813.5,1813.4,21.23387059]
[1743397539852,1e-05,1813.5,1813.4,26.66987059]
[1743397540734,1e-05,1813.5,1813.4,26.2479]
[1743397544551,1e-05,1813.5,1813.4,14.5]
[1743397544743,0.81951,1813.5,1813.4,19.94]
[1743397545248,0.81951,1813.5,1813.4,25.4545]
[1743397545618,1e-05,1813.5,1813.4,25.4515]
[1743397548248,1e-05,1813.5,1813.4,26.2645]
[1743397552054,1e-05,1813.5,1813.4,29.2645]
[1743397552260,1e-05,1813.5,1813.4,29.8145]
[1743397555134,1e-05,1813.9,1813.4,29.8145]
[1743397555338,0.01,1814.3,1814.2,9.32507]
[1743397555535,0.9195,1814.9,1814.8,5.51024]
[1743397555735,0.9195,1814.9,1814.8,10.96824]
[1743397555951,0.9195,1814.9,1814.8,25.46824]
[1743397558865,0.1,1814.9,1814.8,25.46824]
[1743397559659,0.1,1814.9,1814.8,25.88320343]
[1743397562252,1e-05,1814.9,1814.8,30.24280343]
[1743397563061,0.8036,1816.0,1815.7,5.50735]
[1743397563241,0.8036,1816.0,1815.7,10.95921]
[1743397564177,0.8036,1816.0,1815.7,10.9595]
[1743397564340,3.51599147,1815.8,1815.7,5.452]
[1743397564544,0.8036,1815.8,1815.7,5.452]
[1743397564864,0.8036,1815.8,1815.7,10.95951]
[1743397565046,0.1,1815.9,1815.7,10.95951]
[1743397565047,0.1,1815.9,1815.8,5.50721]
[1743397566148,0.1,1815.9,1815.7,12.055461]
[1743397566347,0.1,1815.9,1815.7,10.95951]
[1743397566668,0.1,1815.9,1815.7,10.95949]
[1743397567031,0.1,1815.9,1815.6,5.5078]
[1743397567237,0.1,1815.9,1815.7,5.46]
[1743397568262,0.1,1815.9,1815.7,10.9675]
[1743397569068,0.1,1815.9,1815.8,5.50721]
[1743397569648,0.1,1815.9,1815.7,6.6041]
[1743397569848,0.1,1815.9,1815.8,5.50721]
[1743397570055,0.1,1815.9,1815.8,10.96721]
[1743397571944,0.907,1815.9,1815.8,10.96721]
[1743397572541,0.907,1815.9,1815.8,5.46]
[1743397572742,0.807,1815.8,1815.5,5.50812]
[1743397573045,0.807,1815.6,1815.3,5.50859]
[1743397573382,0.807,1815.6,1815.2,5.50884]
[1743397573383,0.807,1815.6,1815.2,10.97884]
[1743397573573,6.31485,1815.6,1815.2,10.97884]
[1743397573748,0.807,1815.6,1815.2,10.97884]
[1743397574074,0.807,1815.6,1815.3,5.50872]
[1743397575753,0.807,1815.6,1815.3,5.50852]
[1743397576476,0.807,1815.6,1815.2,10.97902]
[1743397576771,8.22054147,1815.5,1815.2,5.47]
[1743397576991,2.71239147,1815.3,1815.0,5.50962]
[1743397577142,2.71239147,1815.3,1815.1,5.50924]
[1743397577753,0.8259,1815.4,1815.1,5.5092]
[1743397578040,0.8259,1815.4,1815.3,5.50873]
[1743397578254,0.8259,1815.4,1815.2,5.509]
[1743397578442,0.8259,1815.4,1815.1,12.11533]
[1743397578857,0.8259,1815.4,1815.2,5.50897]
[1743397580580,0.8259,1815.4,1815.1,11.01832]
[1743397580775,0.8259,1815.4,1815.1,12.120162]
[1743397581774,0.8259,1815.4,1815.2,5.50898]
[1743397582357,0.8259,1815.4,1815.1,5.50915]
[1743397583180,0.8259,1815.4,1815.1,10.95415]
[1743397584055,0.8259,1815.2,1814.8,5.51018]
[1743397584260,0.8259,1815.0,1814.7,5.51037]
[1743397585772,0.8259,1815.0,1814.8,5.51023]
[1743397586286,0.8259,1815.0,1814.9,5.50994]
[1743397586458,0.8259,1815.0,1814.8,5.51023]
[1743397586775,0.8259,1815.0,1814.8,6.612206]
[1743397586979,3.53829147,1815.1,1814.9,5.50994]
[1743397587184,0.8259,1815.1,1814.9,5.50994]
[1743397587478,3.53829147,1815.1,1814.7,5.51054]
[1743397587642,9.04763147,1815.1,1814.7,5.51054]
[1743397588058,9.04763147,1815.1,1814.8,14.5]
[1743397588472,3.53829147,1815.1,1814.8,20.01022]
[1743397588673,2.71239147,1814.9,1814.8,14.5]
[1743397588978,3.47609147,1814.9,1814.6,31.792]
[1743397589182,0.90475515,1815.1,1814.6,32.5894]
[1743397589183,3.47609147,1815.1,1814.6,32.5894]
[1743397589373,3.47609147,1815.1,1814.9,5.50977]
[1743397589689,2.71239147,1815.1,1815.0,5.50964]
[1743397589850,3.47609147,1815.3,1814.9,16.4825]
[1743397590048,3.47609147,1815.3,1815.0,5.50964]
[1743397590353,3.47609147,1815.3,1815.1,14.5]
[1743397590652,0.7637,1815.3,1815.1,14.5]
[1743397590856,0.7637,1815.3,1815.1,20.00922]
[1743397591278,0.7637,1815.3,1815.1,14.5]
[1743397591649,8.22142147,1815.2,1815.1,14.5]
[1743397591953,0.7637,1815.1,1814.8,10.96923]
[1743397592178,0.7637,1815.1,1814.8,16.47925]
[1743397592346,0.7637,1815.1,1814.9,14.5]
[1743397592778,8.98482147,1815.3,1814.9,20.00979]
[1743397592957,3.47609147,1815.3,1815.0,5.50942]
[1743397593357,0.7637,1815.8,1815.7,5.50751]
[1743397593568,0.1,1815.9,1815.7,20.00751]
[1743397594548,0.1,1815.9,1815.8,5.50721]
[1743397595762,0.1,1815.9,1815.8,20.00721]
[1743397596890,0.1,1815.9,1815.8,20.80461]
[1743397597755,0.1,1815.9,1815.8,20.00721]
[1743397599581,0.1,1815.9,1815.8,20.79191]
[1743397599784,0.1,1815.9,1815.8,23.79191]
[1743397600360,0.1,1815.9,1815.8,24.34191]
[1743397602491,0.1,1815.9,1815.8,29.81391]
[1743397602666,0.8003,1816.6,1816.4,5.50529]
[1743397602870,0.8003,1816.6,1816.4,10.97629]
[1743397603194,0.8003,1816.6,1816.4,16.48158]
[1743397603365,0.8003,1816.6,1816.4,10.97629]
[1743397603570,0.8003,1816.6,1816.5,5.50509]
[1743397604184,0.8003,1816.6,1816.4,25.4762]
[1743397604579,0.8003,1816.6,1816.4,16.48147]
[1743397604785,0.8003,1816.6,1816.4,5.471]
[1743397605188,9.01762147,1816.6,1816.3,5.469]
[1743397605399,14.52268147,1816.6,1816.3,5.469]
[1743397605559,9.01762147,1816.6,1816.3,5.469]
[1743397605765,14.52268147,1816.6,1816.3,5.469]
[1743397605982,5.50514,1816.5,1816.3,5.469]
[1743397606193,8.99458147,1816.4,1816.3,5.469]
[1743397606373,3.48919147,1816.4,1816.3,5.469]
[1743397606767,8.99458147,1816.4,1816.3,5.469]
[1743397607498,8.99458147,1816.4,1816.0,19.972]
[1743397607696,0.7768,1816.4,1816.1,11.01225]
[1743397608000,0.7768,1816.4,1816.2,5.50597]
[1743397608172,8.99424147,1816.6,1816.2,5.50597]
[1743397608380,3.48919147,1816.6,1816.3,5.50551]
[1743397608671,3.48919147,1816.6,1816.3,11.01097]
[1743397608870,0.7768,1816.6,1816.3,12.112067]
[1743397609100,0.7768,1816.6,1816.4,5.50537]
[1743397609295,6.28166,1816.6,1816.1,5.50615]
[1743397609466,3.48919147,1816.6,1816.2,11.01175]
[1743397609670,3.48919147,1816.6,1816.3,5.5056]
[1743397609978,3.48919147,1816.6,1816.4,14.5]
[1743397610767,3.48919147,1816.6,1816.4,19.995]
[1743397611797,0.55,1816.7,1816.4,21.99918537]
[1743397612103,0.55,1816.7,1816.6,5.50478]
[1743397614992,6.83141,1816.7,1816.6,5.487]
[1743397615773,0.7768,1816.6,1816.2,31.778]
[1743397616015,0.7768,1816.3,1816.2,31.778]
[1743397616302,0.7768,1816.3,1816.2,46.278]
[1743397616706,6.28249,1816.3,1816.2,46.278]
[1743397616908,3.48919147,1816.3,1816.2,31.778]
[1743397617269,3.48919147,1816.3,1816.2,46.278]
[1743397617904,0.7768,1816.3,1816.2,46.278]
[1743397618306,1.3395,1816.7,1816.4,5.50526]
[1743397618597,1.3395,1816.7,1816.5,5.497]
[1743397618906,1.3395,1816.7,1816.6,14.5]
[1743397619203,0.55,1816.7,1816.6,14.5]
[1743397620498,6.05448,1816.7,1816.6,14.5]
[1743397620706,0.55,1816.7,1816.6,14.5]
[1743397621299,0.7895,1816.4,1816.2,31.778]
[1743397621478,3.50189147,1816.4,1816.2,31.778]
[1743397621683,9.00740147,1816.4,1816.2,46.278]
[1743397622005,5.50569,1816.3,1816.2,46.278]
[1743397622201,9.00740147,1816.4,1816.2,14.5]
[1743397622404,5.50621,1816.2,1815.7,6.3403]
[1743397622698,5.50621,1816.2,1815.8,11.00921]
[1743397622699,13.72487147,1816.2,1815.8,11.00921]
[1743397622899,5.50631,1816.1,1815.9,14.5]
[1743397623298,2.71239147,1816.2,1815.9,20.00689]
[1743397623696,8.21854147,1816.2,1815.9,14.5]
[1743397624095,2.71239147,1816.2,1815.9,14.5]
[1743397624297,8.21850147,1816.2,1815.9,14.5]
[1743397624906,2.71239147,1816.2,1815.9,14.5]
[1743397625214,2.71239147,1816.0,1815.9,14.5]
[1743397625395,0.7895,1815.9,1815.7,5.515]
[1743397625914,0.7895,1815.9,1815.8,14.5]
[1743397626394,0.7895,1816.1,1815.8,20.00708]
[1743397626594,0.7895,1816.1,1815.9,5.50669]
[1743397626795,0.7895,1816.1,1815.9,7.507359]
[1743397627002,9.00759147,1816.3,1815.9,6.33949]
[1743397627303,9.00759147,1816.3,1815.8,20.84001]
[1743397627505,5.50602,1816.2,1815.8,20.84001]
[1743397627711,5.50602,1816.2,1815.8,20.00721]
[1743397627915,14.51355147,1816.3,1815.8,20.00721]
[1743397628079,9.00759147,1816.3,1815.9,5.5068]
[1743397628274,14.51359147,1816.3,1815.8,20.00721]
[1743397628481,5.506,1816.2,1815.8,20.00721]
[1743397628706,9.00759147,1816.3,1815.8,20.00721]
[1743397628910,9.00759147,1816.3,1815.9,5.50689]
[1743397629224,14.51359147,1816.3,1815.9,5.50689]
[1743397629429,9.00759147,1816.3,1815.9,5.50689]
[1743397630147,3.50189147,1816.3,1816.0,5.50656]
[1743397630346,3.50189147,1816.3,1816.0,5.503]
[1743397630954,3.50189147,1816.3,1816.0,11.00959]
[1743397631134,3.50189147,1816.3,1816.0,5.503]
[1743397631337,9.00771147,1816.3,1816.0,5.503]
[1743397631851,9.00771147,1816.3,1816.1,14.5]
[1743397632955,5.506,1816.2,1815.9,5.495]
[1743397633834,5.50641,1816.1,1815.9,5.495]
[1743397634017,11.01295,1816.1,1815.9,5.495]
[1743397634438,8.21880147,1816.1,1815.9,5.495]
[1743397634937,2.71239147,1816.1,1815.9,5.495]
[1743397635307,5.50619,1816.2,1815.9,5.495]
[1743397635527,13.72482147,1816.2,1815.9,5.495]
[1743397635839,8.21858147,1816.2,1815.9,5.495]
[1743397636228,13.72484147,1816.2,1815.9,5.495]
[1743397636607,5.50634,1816.1,1815.9,5.495]
[1743397638945,5.5066,1816.0,1815.9,5.495]
[1743397639135,3.81368547,1816.0,1815.5,32.5284]
[1743397639444,2.71239147,1815.8,1815.6,5.474]
[1743397639620,2.71239147,1816.0,1815.6,6.2274]
[1743397639824,2.71239147,1816.0,1815.7,5.50725]
[1743397640746,13.72613147,1816.0,1815.6,11.73521]
[1743397641116,13.72613147,1816.0,1815.7,5.477]
[1743397641849,8.21924147,1816.0,1815.7,5.477]
[1743397642017,13.72613147,1816.0,1815.7,5.477]
[1743397642218,5.50693,1815.9,1815.7,5.477]
[1743397642619,9.01780147,1815.8,1815.7,5.477]
[1743397643555,9.01780147,1815.8,1815.4,5.50834]
[1743397643738,5.50753,1815.7,1815.3,38.0409]
[1743397644049,3.51059147,1815.8,1815.5,5.50811]
[1743397644245,3.51059147,1815.8,1815.4,10.98828]
[1743397644546,9.01780147,1815.8,1815.4,10.98828]
[1743397645050,5.50799,1815.6,1815.4,5.48]
[1743397645238,0.7982,1815.5,1815.3,31.779]
[1743397645439,0.7982,1815.5,1814.9,0.7534]
[1743397645624,9.01976147,1815.2,1815.0,5.477]
[1743397645820,3.51059147,1815.2,1815.0,5.478]
[1743397646331,3.51059147,1815.4,1815.1,5.50922]
[1743397646732,2.71239147,1815.4,1815.0,6.2314]
[1743397646961,2.71239147,1815.4,1815.2,5.50896]
[1743397647260,2.71239147,1815.4,1815.2,1.101829]
[1743397647826,8.22083147,1815.4,1815.2,1.101829]
[1743397648140,0.7966,1815.3,1814.9,5.50992]
[1743397648319,2.71239147,1815.2,1815.0,11.00862]
[1743397648519,2.71239147,1815.2,1815.0,11.00844]
[1743397649324,2.71239147,1815.4,1815.1,6.3251]
[1743397649648,2.71239147,1815.4,1815.2,5.50903]
[1743397649854,2.71239147,1815.4,1815.2,6.692443]
[1743397650552,6.8466,1815.7,1815.4,5.50816]
[1743397650752,6.8466,1815.7,1815.4,5.503]
[1743397650753,2.71239147,1815.6,1815.4,5.503]
[1743397650940,0.7966,1815.7,1815.4,5.503]
[1743397650941,2.71239147,1815.5,1815.4,5.503]
[1743397651726,2.71239147,1815.5,1815.2,6.692423]
[1743397651927,2.71239147,1815.5,1815.3,6.1742423]
[1743397653272,8.22055147,1815.5,1815.3,6.1742423]
[1743397653438,2.71239147,1815.5,1815.3,5.505]
[1743397653864,8.22052147,1815.5,1815.3,5.505]
[1743397654678,2.71239147,1815.5,1815.3,5.505]
[1743397658160,8.22058147,1815.5,1815.3,5.505]
[1743397658337,2.71239147,1815.5,1815.3,5.505]
[1743397658656,2.71239147,1815.5,1815.3,11.01373]
[1743397658857,2.71239147,1815.5,1815.3,12.115129]
[1743397659063,2.71239147,1815.5,1815.3,6.606399]
[1743397659358,2.71239147,1815.5,1815.3,5.505]
[1743397661383,0.7966,1815.4,1815.1,6.32522]
[1743397661531,0.7966,1815.4,1815.3,5.475]
[1743397662870,9.01714147,1815.5,1815.3,5.475]
[1743397663665,5.50842,1815.4,1815.3,5.475]
[1743397663969,2.71239147,1815.4,1815.3,5.475]
[1743397665275,8.22093147,1815.4,1815.0,5.50961]
[1743397665567,8.22093147,1815.4,1815.1,5.462]
[1743397665761,2.71239147,1815.4,1815.1,10.97128]
[1743397666769,2.71239147,1815.4,1815.3,5.50873]
[1743397667570,2.71239147,1815.4,1815.2,6.31715]
[1743397667774,2.71239147,1815.4,1815.2,11.82603]
[1743397667945,2.71239147,1815.4,1815.2,6.31715]
[1743397669459,8.22085147,1815.4,1815.0,6.28633]
[1743397669652,2.71239147,1815.2,1815.1,5.455]
[1743397671488,2.71239147,1815.2,1814.9,31.789]
[1743397671670,2.71239147,1815.0,1814.9,37.244]
[1743397673176,8.22203147,1815.0,1814.9,37.244]
[1743397673474,9.67582362,1815.0,1814.9,37.244]
[1743397674255,9.67582362,1815.0,1814.9,5.455]
[1743397674980,2.71239147,1815.0,1814.9,5.455]
[1743397675347,2.71239147,1815.2,1814.9,5.455]
[1743397675553,2.71239147,1815.1,1814.9,5.455]
[1743397675770,2.71239147,1815.1,1814.9,10.96484]
[1743397676079,2.71239147,1815.1,1814.9,5.455]
[1743397678275,8.22172147,1815.1,1814.9,5.455]
[1743397678487,0.8064,1815.0,1814.9,5.455]
[1743397678675,6.31604,1815.0,1814.5,11.79898]
[1743397678999,2.71239147,1814.8,1814.6,5.439]
[1743397679453,2.71239147,1814.8,1814.6,10.9497]
[1743397680075,3.51879147,1815.0,1814.7,5.51037]
[1743397680397,2.71239147,1814.8,1814.7,5.439]
[1743397682343,3.51879147,1815.0,1814.7,11.76763]
[1743397682619,3.51879147,1815.0,1814.7,10.94953]
[1743397683617,3.51879147,1815.0,1814.7,10.94944]
[1743397683910,9.54179147,1815.2,1814.9,5.50968]
[1743397684084,3.49179147,1815.2,1814.9,5.50968]
[1743397684693,3.49179147,1815.2,1814.9,5.50988]
[1743397684881,8.76239147,1815.5,1815.2,5.50896]
[1743397685078,14.27052147,1815.5,1815.1,11.77436]
[1743397685512,3.49179147,1815.3,1815.1,5.447]
[1743397685812,9.00053147,1815.3,1815.1,5.447]
[1743397686314,3.49179147,1815.3,1815.1,5.447]
[1743397686893,3.49179147,1815.3,1815.1,10.95632]
[1743397687799,3.49179147,1815.3,1815.1,5.447]
[1743397688204,3.49179147,1815.3,1814.8,11.02006]
[1743397688205,9.90074362,1815.3,1814.8,11.02006]
[1743397688405,2.71239147,1815.2,1814.9,5.50976]
[1743397688618,2.71239147,1815.2,1815.0,5.50963]
[1743397688786,2.71239147,1815.2,1815.0,5.50942]
[1743397688990,2.71239147,1815.2,1814.9,11.01967]
[1743397689185,2.71239147,1815.2,1815.0,5.50962]
[1743397691489,2.71239147,1815.2,1814.9,5.5098]
[1743397692828,2.71239147,1815.0,1814.9,5.447]
[1743397692986,3.48969147,1815.0,1814.8,10.95718]
[1743397693528,3.48969147,1815.0,1814.8,5.447]
[1743397693690,8.99934147,1815.0,1814.7,5.449]
[1743397693894,8.99934147,1815.0,1814.6,11.0215]
[1743397694216,8.99934147,1815.0,1814.7,10.95953]
[1743397694593,3.48969147,1815.0,1814.7,10.95953]
[1743397694788,2.71239147,1815.0,1814.8,5.51003]
[1743397695010,9.53969147,1815.2,1814.9,5.50969]
[1743397695216,9.53969147,1815.2,1815.0,5.50957]
[1743397695591,9.53969147,1815.2,1814.9,5.50969]
[1743397697329,9.53969147,1815.2,1814.8,5.51024]
[1743397697330,17.10464962,1815.2,1814.8,5.51024]
[1743397697491,2.71239147,1815.0,1814.8,10.95224]
[1743397698109,2.71239147,1815.0,1814.9,5.50994]
[1743397698313,6.05,1815.2,1815.1,5.50933]
[1743397699193,6.05,1815.2,1815.1,6.611206]
[1743397699615,2.71239147,1815.4,1815.2,5.50874]
[1743397699812,2.71239147,1815.4,1815.2,16.47457]
[1743397699993,2.71239147,1815.4,1815.2,10.96574]
[1743397703526,2.71239147,1815.4,1815.2,5.457]
[1743397703822,2.71239147,1815.4,1815.3,5.50873]
[1743397704203,0.7773,1815.6,1815.4,5.50824]
[1743397704411,2.71239147,1815.6,1815.4,5.50824]
[1743397704724,2.71239147,1815.6,1815.3,6.30221]
[1743397704895,2.71239147,1815.6,1815.4,5.5084]
[1743397705409,2.71239147,1815.6,1815.3,5.50871]
[1743397705410,2.71239147,1815.6,1815.3,5.50859]
[1743397705621,0.7773,1815.5,1815.3,5.50859]
[1743397705931,0.7773,1815.5,1815.2,10.96602]
[1743397706232,0.7773,1815.5,1815.3,5.50855]
[1743397706734,2.71239147,1815.4,1815.3,5.50855]
[1743397708626,2.71239147,1815.4,1815.3,20.00855]
[1743397709395,2.71239147,1815.5,1815.3,20.00855]
[1743397710624,2.71239147,1815.6,1815.3,20.00855]
[1743397711226,2.71239147,1815.5,1815.3,14.5]
[1743397711630,0.7944,1815.7,1815.5,5.50806]
[1743397711842,9.55679147,1815.9,1815.6,5.50782]
[1743397712130,10.51247062,1815.9,1815.6,5.50782]
[1743397712295,10.51247062,1815.9,1815.6,20.00782]
[1743397712493,9.55679147,1815.9,1815.6,20.00782]
[1743397712908,6.8444,1815.9,1815.6,19.918]
[1743397713129,3.50679147,1816.1,1815.8,5.5072]
[1743397713800,9.01309147,1816.1,1815.7,6.27721]
[1743397714202,9.01309147,1816.1,1815.6,25.42581]
[1743397714402,5.50661,1816.0,1815.6,30.93345]
[1743397714603,8.21900147,1816.0,1815.6,30.93327]
[1743397714803,2.71239147,1816.0,1815.7,5.50727]
[1743397715014,3.50679147,1816.1,1815.6,25.4258]
[1743397715214,3.50679147,1816.1,1815.8,5.50707]
[1743397715428,0.7944,1816.1,1815.9,5.50684]
[1743397715628,8.76239147,1816.2,1815.9,5.50678]
[1743397715829,2.01834945,1816.3,1815.8,0.7697]